bitfinex-derivatives/quotes_BTCF0:USTF0_20251216
["timestamp","ask_amount","ask_price","bid_price","bid_amount"]
[1765911171457,0.1884474,88067.0,88066.0,0.00017033]
[1765911172352,0.1884474,88067.0,88066.0,0.21973033]
[1765911172656,0.1884474,88067.0,88066.0,0.00017033]
[1765911174753,0.1776787,88057.0,88056.0,0.05714]
[1765911175066,0.8907187,88057.0,88056.0,0.08991005]
[1765911175447,0.8907187,88057.0,88056.0,0.19868005]
[1765911175845,0.8907187,88057.0,88056.0,0.09091005]
[1765911176046,0.8907187,88057.0,88056.0,0.14254005]
[1765911176259,0.8907187,88057.0,88056.0,0.25333005]
[1765911177054,0.3608,88063.0,88062.0,0.21956]
[1765911177247,0.3608,88063.0,88062.0,0.25233005]
[1765911177449,0.52312,88063.0,88062.0,0.25233005]
[1765911177760,0.55113686,88063.0,88062.0,0.25233005]
[1765911178360,0.16096,88061.0,88060.0,0.06844]
[1765911178655,0.1723191,88054.0,88053.0,0.06844]
[1765911178865,0.1723191,88054.0,88053.0,0.10097295]
[1765911179163,0.1723191,88054.0,88053.0,0.32053295]
[1765911180859,0.40017486,88063.0,88062.0,0.21956]
[1765911181164,0.55573033,88065.0,88064.0,0.288]
[1765911181862,0.58348249,88065.0,88064.0,0.288]
[1765911182050,0.66193249,88065.0,88064.0,0.288]
[1765911182447,0.73970249,88065.0,88064.0,0.288]
[1765911183458,0.74070249,88065.0,88064.0,0.288]
[1765911183658,0.74070249,88065.0,88064.0,0.06844]
[1765911184462,0.1647391,88054.0,88053.0,0.27782]
[1765911184661,0.1647391,88054.0,88053.0,0.31008989]
[1765911184856,0.1647391,88054.0,88053.0,0.06844]
[1765911185065,0.5255391,88054.0,88053.0,0.06844]
[1765911185360,0.5255391,88054.0,88048.0,0.05731033]
[1765911185361,0.1633798,88049.0,88048.0,0.05731033]
[1765911185555,0.1633798,88049.0,88048.0,0.08958467]
[1765911185755,0.1633798,88049.0,88048.0,0.05731033]
[1765911185950,0.1633798,88049.0,88048.0,0.16475033]
[1765911186258,0.1633798,88049.0,88048.0,0.05731033]
[1765911186960,0.1643798,88049.0,88048.0,0.00017033]
[1765911187457,0.1633798,88049.0,88048.0,0.00017033]
[1765911187664,0.19317062,88049.0,88048.0,0.00017033]
[1765911187965,0.19417062,88049.0,88048.0,0.00017033]
[1765911189165,0.1579413,88037.0,88036.0,0.3608]
[1765911189468,0.8708213,88037.0,88036.0,0.46824]
[1765911189961,0.8708213,88037.0,88032.0,0.06682]
[1765911189962,0.1572918,88033.0,88032.0,0.2762]
[1765911190257,0.1572918,88033.0,88032.0,0.06682]
[1765911191259,0.1572918,88033.0,88032.0,0.2762]
[1765911192661,0.1582918,88033.0,88032.0,0.2762]
[1765911192848,0.1582918,88033.0,88032.0,0.06682]
[1765911193047,0.1525623,88029.0,88028.0,0.00017033]
[1765911193954,0.1525623,88029.0,88028.0,0.20955033]
[1765911194258,0.1525623,88029.0,88028.0,0.10761033]
[1765911194466,0.1525623,88029.0,88028.0,0.00017033]
[1765911194859,0.1535623,88029.0,88028.0,0.10761033]
[1765911195054,0.1535623,88029.0,88028.0,0.00017033]
[1765911195360,0.1535623,88029.0,88028.0,0.10761033]
[1765911195560,0.1525623,88029.0,88028.0,0.10761033]
[1765911195867,0.1545623,88029.0,88028.0,0.20955033]
[1765911196165,0.1535623,88029.0,88028.0,0.20955033]
[1765911196567,0.1545623,88029.0,88028.0,0.20955033]
[1765911196967,0.1545623,88029.0,88028.0,0.00017033]
[1765911197170,0.1535623,88029.0,88028.0,0.00017033]
[1765911197466,0.1545623,88029.0,88028.0,0.00017033]
[1765911198060,0.1545623,88029.0,88028.0,0.20955033]
[1765911198757,0.1535623,88029.0,88028.0,0.20955033]
[1765911198964,0.1545623,88029.0,88028.0,0.20955033]
[1765911199461,0.1432,88029.0,88028.0,0.20955033]
[1765911200766,0.1422,88029.0,88028.0,0.20955033]
[1765911201756,0.002,88029.0,88028.0,0.22091283]
[1765911201960,0.71276,88030.0,88029.0,0.20938]
[1765911201961,0.55078,88030.0,88029.0,0.20938]
[1765911202368,0.02824919,88034.0,88033.0,0.2207418]
[1765911202560,0.15500823,88038.0,88037.0,0.20938]
[1765911203165,0.1827718,88038.0,88037.0,0.20938]
[1765911203368,0.13535357,88038.0,88037.0,0.20938]
[1765911204067,0.02876357,88038.0,88037.0,0.20938]
[1765911204464,0.25608477,88038.0,88037.0,0.20938]
[1765911204663,0.24472357,88038.0,88037.0,0.20938]
[1765911205363,0.02876357,88038.0,88037.0,0.20938]
[1765911205564,0.001,88038.0,88037.0,0.20938]
[1765911205765,0.00017033,88045.0,88037.0,0.20938]
[1765911205766,0.00017033,88045.0,88044.0,0.2207404]
[1765911205966,0.00017033,88045.0,88044.0,0.5815404]
[1765911206264,0.02881386,88053.0,88052.0,0.2207394]
[1765911206470,0.71272,88054.0,88053.0,0.20938]
[1765911206865,0.74068006,88054.0,88053.0,0.20938]
[1765911207265,0.74068006,88054.0,88053.0,0.210601]
[1765911207471,0.02796006,88054.0,88053.0,0.210601]
[1765911207658,0.0113588,88057.0,88056.0,0.2762]
[1765911207859,0.0113588,88057.0,88056.0,0.27782561]
[1765911208069,0.0113588,88057.0,88056.0,0.27811656]
[1765911208269,0.04024922,88057.0,88056.0,0.27811656]
[1765911208466,0.1189484,88060.0,88056.0,0.06873656]
[1765911208767,0.2273184,88060.0,88059.0,0.20938]
[1765911209862,0.2273184,88060.0,88059.0,0.21210777]
[1765911210067,0.2273184,88060.0,88059.0,0.21251227]
[1765911210262,0.21596,88060.0,88059.0,0.21251227]
[1765911210670,0.21596,88060.0,88059.0,0.21291887]
[1765911211266,0.21596,88060.0,88059.0,0.21321238]
[1765911211570,0.21596,88060.0,88059.0,0.21361947]
[1765911211965,0.21596,88060.0,88059.0,0.21402656]
[1765911213275,0.21596,88060.0,88059.0,0.21443365]
[1765911213663,0.21596,88060.0,88059.0,0.21484074]
[1765911214174,0.21596,88060.0,88059.0,0.21524783]
[1765911214473,0.21596,88060.0,88059.0,0.20938]
[1765911214675,0.27685,88060.0,88059.0,0.00627492]
[1765911214974,0.21981779,88049.0,88048.0,0.23046033]
[1765911215470,0.7126,88051.0,88050.0,0.23029]
[1765911215471,0.92774,88051.0,88050.0,0.23029]
[1765911217063,0.9390995,88051.0,88050.0,0.23029]
[1765911218871,0.2264998,88049.0,88048.0,0.00017033]
[1765911219565,0.2264998,88049.0,88048.0,0.11440033]
[1765911219965,0.2264998,88049.0,88048.0,0.00017033]
[1765911220665,0.2274998,88049.0,88048.0,0.00017033]
[1765911220975,0.2274998,88049.0,88048.0,0.23046033]
[1765911223482,0.2284998,88049.0,88048.0,0.23046033]
[1765911224170,0.2274998,88049.0,88048.0,0.23046033]
[1765911224671,0.001,88049.0,88048.0,0.23046033]
[1765911225377,0.82081,88051.0,88050.0,0.23029]
[1765911226679,0.9400995,88051.0,88050.0,0.23029]
[1765911227378,0.9400995,88051.0,88050.0,0.11423]
[1765911227774,0.9400995,88051.0,88050.0,0.23029]
[1765911228181,0.21514,88049.0,88048.0,0.00017033]
[1765911228377,0.21514,88049.0,88048.0,0.23046033]
[1765911228684,0.21514,88049.0,88048.0,0.11440033]
[1765911228876,0.21514,88049.0,88048.0,0.23046033]
[1765911229767,0.21614,88049.0,88048.0,0.23046033]
[1765911229973,0.21614,88049.0,88048.0,0.00017033]
[1765911230172,0.21614,88049.0,88048.0,0.23046033]
[1765911231669,0.001,88049.0,88048.0,0.23046033]
[1765911231883,0.21614,88049.0,88048.0,0.23046033]
[1765911234187,0.001,88049.0,88048.0,0.24182023]
[1765911234483,0.001,88049.0,88048.0,0.26152931]
[1765911234683,0.10921,88049.0,88048.0,0.26152931]
[1765911235680,0.001,88049.0,88048.0,0.26152931]
[1765911236074,0.10921,88049.0,88048.0,0.26152931]
[1765911236274,0.21614,88049.0,88048.0,0.26152931]
[1765911238282,0.2274998,88049.0,88048.0,0.26152931]
[1765911240382,0.21614,88049.0,88048.0,0.26152931]
[1765911241280,0.10921,88049.0,88048.0,0.27288921]
[1765911241982,0.001,88049.0,88048.0,0.27288921]
[1765911242492,0.10921,88049.0,88048.0,0.27288921]
[1765911242686,0.21614,88049.0,88048.0,0.26152931]
[1765911243489,0.21614,88049.0,88048.0,0.03123931]
[1765911243683,0.21614,88049.0,88048.0,0.00017033]
[1765911243882,0.21614,88049.0,88032.0,0.21998]
[1765911243883,0.21656,88033.0,88032.0,0.21998]
[1765911244184,0.21656,88033.0,88020.0,0.2150886]
[1765911244185,0.2295936,88019.0,88018.0,0.00227228]
[1765911244381,0.9235936,88019.0,88018.0,0.00227228]
[1765911244589,0.9235936,88019.0,88000.0,0.04048508]
[1765911244590,0.05935,88011.0,88001.0,0.3608]
[1765911244784,0.21823,88002.0,88001.0,0.56871]
[1765911245787,0.93079,88002.0,88001.0,0.56871]
[1765911246094,1.29159,88002.0,88001.0,0.10216]
[1765911246494,0.21823,87998.0,87997.0,0.10216]
[1765911247090,0.2295963,87998.0,87997.0,0.10216]
[1765911247290,0.21823,87994.0,87993.0,0.46313043]
[1765911247599,0.21823,87994.0,87993.0,0.36097043]
[1765911247787,0.2295982,87984.0,87983.0,0.3608]
[1765911247987,0.2295982,87984.0,87978.0,0.00227331]
[1765911247988,0.21823,87979.0,87978.0,0.21018331]
[1765911248585,0.21823,87979.0,87978.0,0.00227331]
[1765911249284,0.21823,87979.0,87970.0,0.00017043]
[1765911249285,0.2295998,87971.0,87970.0,0.00017043]
[1765911249484,0.3608,87973.0,87972.0,0.20791]
[1765911249787,1.07348,87973.0,87972.0,0.20791]
[1765911250291,0.57903,87973.0,87972.0,0.20791]
[1765911250496,1.29171,87973.0,87972.0,0.20791]
[1765911250683,0.3608,87973.0,87972.0,0.20791]
[1765911250890,1.0288,87973.0,87972.0,0.20791]
[1765911251191,0.77788,87973.0,87972.0,0.20791]
[1765911251390,0.88623,87973.0,87972.0,0.20791]
[1765911251590,0.8226,87973.0,87972.0,0.20791]
[1765911251786,0.93095,87973.0,87972.0,0.20791]
[1765911251984,1.29175,87973.0,87972.0,0.20791]
[1765911252190,0.21823,87971.0,87970.0,0.00017043]
[1765911253295,0.21823,87971.0,87970.0,0.00128187]
[1765911253590,0.001,87971.0,87970.0,0.20919187]
[1765911253783,0.57536,87971.0,87970.0,0.20955378]
[1765911254184,0.57536,87971.0,87970.0,0.20968901]
[1765911254185,0.57436,87971.0,87970.0,0.20968901]
[1765911254394,0.79459,87971.0,87970.0,0.10393901]
[1765911254795,0.79359,87971.0,87970.0,0.20968901]
[1765911254987,0.79359,87971.0,87970.0,0.21068901]
[1765911255588,0.8049598,87971.0,87970.0,0.21068901]
[1765911255788,0.79259,87971.0,87970.0,0.21068901]
[1765911255990,0.8039598,87971.0,87970.0,0.00377901]
[1765911256191,0.21823,87954.0,87953.0,0.56871]
[1765911256386,0.86363,87954.0,87953.0,0.20791]
[1765911257199,0.86371815,87954.0,87953.0,0.20791]
[1765911258002,0.21823,87949.0,87948.0,0.27426]
[1765911258492,0.64548815,87954.0,87953.0,0.20791]
[1765911258493,0.75536815,87954.0,87953.0,0.20791]
[1765911258801,0.67338904,87954.0,87953.0,0.20791]
[1765911259006,0.89161904,87954.0,87953.0,0.20791]
[1765911259201,0.90299104,87954.0,87953.0,0.20791]
[1765911260101,0.21823,87949.0,87948.0,0.10216]
[1765911261397,0.10988,87949.0,87948.0,0.27426]
[1765911261605,0.78326904,87954.0,87953.0,0.20791]
[1765911262004,0.21823,87949.0,87948.0,0.27426]
[1765911262198,0.13786904,87954.0,87953.0,0.20791]
[1765911262397,0.69809904,87954.0,87953.0,0.20791]
[1765911263500,0.69809904,87954.0,87953.0,0.20891]
[1765911264305,0.95933904,87954.0,87953.0,0.20791]
[1765911265002,0.2296031,87946.0,87945.0,0.36097053]
[1765911265199,0.21823,87946.0,87945.0,0.36097053]
[1765911265598,0.21823,87946.0,87945.0,0.46313053]
[1765911265904,0.21823,87946.0,87945.0,0.56888053]
[1765911266102,0.96233904,87954.0,87953.0,0.20791]
[1765911267197,0.96233904,87954.0,87953.0,0.10216]
[1765911267598,0.21823,87949.0,87948.0,0.27426]
[1765911271109,0.21823,87949.0,87948.0,0.20791]
[1765911273607,0.21823,87946.0,87945.0,0.00017053]
[1765911274202,0.21823,87946.0,87945.0,0.20478053]
[1765911274802,0.09873815,87949.0,87948.0,0.19651]
[1765911275006,8.815e-05,87949.0,87948.0,0.19651]
[1765911275303,0.59852815,87949.0,87948.0,0.2078828]
[1765911275504,0.59852815,87949.0,87948.0,0.19651]
[1765911275706,0.79572815,87949.0,87948.0,0.19651]
[1765911276111,0.80710085,87949.0,87948.0,0.19751]
[1765911276804,0.92194085,87949.0,87948.0,0.19751]
[1765911277208,0.2085731,87946.0,87945.0,0.19668053]
[1765911277410,0.2085731,87946.0,87945.0,0.2269279]
[1765911277908,0.2085731,87946.0,87945.0,0.1300279]
[1765911278113,0.2085731,87946.0,87945.0,0.0304179]
[1765911279810,0.2085731,87946.0,87945.0,0.02773764]
[1765911280011,0.208574,87939.0,87938.0,0.00227434]
[1765911280213,0.2085751,87930.0,87929.0,0.1297914]
[1765911280403,8.815e-05,87930.0,87929.0,0.19651]
[1765911280604,0.44136815,87930.0,87929.0,0.19651]
[1765911282019,0.1972,87926.0,87925.0,0.2266914]
[1765911282203,0.1972,87926.0,87925.0,0.19651]
[1765911282408,0.2085757,87926.0,87925.0,0.19651]
[1765911283318,0.2085757,87926.0,87925.0,0.19951]
[1765911283710,0.2085757,87926.0,87925.0,0.003]
[1765911284016,0.2085762,87922.0,87921.0,0.00017053]
[1765911284220,0.56946435,87922.0,87921.0,0.00017053]
[1765911284407,0.2085782,87906.0,87905.0,0.55731]
[1765911284614,0.2085782,87906.0,87904.0,0.05769173]
[1765911284615,0.1972,87905.0,87904.0,0.00014173]
[1765911285508,0.558,87905.0,87904.0,0.00014173]
[1765911286021,0.558,87905.0,87904.0,0.00214173]
[1765911287220,0.558,87905.0,87904.0,0.10375173]
[1765911287424,0.558,87905.0,87904.0,0.00414173]
[1765911287722,1.22948,87905.0,87904.0,0.00414173]
[1765911288617,0.2085791,87899.0,87898.0,0.00227538]
[1765911289228,0.1972,87881.0,87880.0,0.3608]
[1765911289520,0.1972,87881.0,87865.0,0.07152823]
[1765911289521,0.1972,87873.0,87872.0,0.25406]
[1765911289822,0.71344,87881.0,87880.0,0.19651]
[1765911289823,0.91064,87881.0,87880.0,0.19651]
[1765911290007,0.91078321,87881.0,87880.0,0.19651]
[1765911290623,0.19734321,87881.0,87880.0,0.19651]
[1765911290826,0.91086321,87881.0,87880.0,0.19761182]
[1765911291625,0.91086321,87881.0,87880.0,0.1980196]
[1765911292224,0.91086321,87881.0,87880.0,0.19842738]
[1765911292415,0.91186321,87881.0,87880.0,0.19842738]
[1765911293126,0.91086321,87881.0,87880.0,0.19842738]
[1765911293326,0.91186321,87881.0,87880.0,0.19842738]
[1765911293515,0.22747634,87881.0,87880.0,0.19842738]
[1765911293712,0.03027634,87881.0,87880.0,0.19842738]
[1765911293921,0.51279634,87881.0,87880.0,0.25597738]
[1765911294116,0.74323634,87881.0,87880.0,0.25597738]
[1765911294313,0.74387634,87881.0,87880.0,0.25597738]
[1765911295140,0.94107634,87881.0,87880.0,0.19842738]
[1765911295516,0.94007634,87881.0,87880.0,0.25597738]
[1765911295924,0.94011634,87881.0,87880.0,0.25597738]
[1765911296330,0.94111634,87881.0,87880.0,0.25597738]
[1765911297129,0.02927634,87881.0,87880.0,0.25697738]
[1765911297432,0.74295634,87881.0,87880.0,0.25697738]
[1765911297819,0.84160634,87881.0,87880.0,0.25697738]
[1765911298022,0.94015634,87881.0,87880.0,0.00291738]
[1765911298816,0.94015634,87881.0,87880.0,0.19842738]
[1765911299224,0.94015634,87881.0,87880.0,0.10152738]
[1765911299631,0.22747634,87881.0,87880.0,0.25597738]
[1765911299831,0.94115634,87881.0,87880.0,0.25597738]
[1765911300233,0.94215634,87881.0,87880.0,0.25597738]
[1765911300825,0.94019634,87881.0,87880.0,0.25597738]
[1765911301021,0.94119634,87881.0,87880.0,0.25597738]
[1765911301329,0.94119634,87881.0,87880.0,0.10152738]
[1765911301521,0.94119634,87881.0,87880.0,0.00191738]
[1765911302527,0.94019634,87881.0,87880.0,0.00191738]
[1765911303427,0.94119634,87881.0,87880.0,0.00191738]
[1765911303635,0.94219634,87881.0,87880.0,0.00191738]
[1765911303831,0.94223634,87881.0,87880.0,0.25647738]
[1765911304032,0.94123634,87881.0,87880.0,0.25647738]
[1765911304227,0.94223634,87881.0,87880.0,0.25647738]
[1765911304835,0.94223634,87881.0,87855.0,0.0113848]
[1765911304836,0.1973,87864.0,87863.0,0.54619]
[1765911305025,0.95920918,87864.0,87863.0,0.34357691]
[1765911305330,0.1973,87859.0,87858.0,0.18766641]
[1765911305531,0.3608,87861.0,87860.0,0.18539]
[1765911305721,0.00013918,87864.0,87863.0,0.18539]
[1765911305926,0.00013918,87864.0,87863.0,0.54619]
[1765911306234,0.19743918,87864.0,87863.0,0.54619]
[1765911306633,0.00013918,87864.0,87863.0,0.54619]
[1765911306934,0.00013918,87864.0,87863.0,0.54719]
[1765911307323,0.00013918,87864.0,87863.0,0.57912129]
[1765911307524,0.0593885,87904.0,87873.0,0.18539]
[1765911307525,0.02807424,87874.0,87873.0,0.18539]
[1765911307735,0.2086812,87884.0,87883.0,0.18539]
[1765911308031,0.4945212,87884.0,87883.0,0.18539]
[1765911308251,0.52274303,87884.0,87883.0,0.18539]
[1765911308634,0.52282327,87884.0,87883.0,0.18701974]
[1765911308831,0.02830207,87884.0,87883.0,0.18742741]
[1765911309036,8.024e-05,87884.0,87883.0,0.54822741]
[1765911309229,0.22912,87890.0,87889.0,0.18539]
[1765911309431,0.22912,87890.0,87889.0,0.54619]
[1765911309725,0.00017064,87892.0,87891.0,0.18539]
[1765911309931,6.4e-07,87892.0,87891.0,0.21634616]
[1765911310240,0.2086774,87913.0,87912.0,0.24446]
[1765911310537,0.4982374,87913.0,87912.0,0.24772042]
[1765911310733,0.4982374,87913.0,87912.0,0.00326042]
[1765911311133,0.2086784,87905.0,87904.0,0.00017064]
[1765911311340,0.20501091,87905.0,87904.0,0.00017064]
[1765911311538,0.20501091,87905.0,87904.0,0.08968064]
[1765911311935,0.19363251,87905.0,87904.0,0.18556064]
[1765911313037,0.19363251,87905.0,87904.0,0.18678229]
[1765911313038,0.19463251,87905.0,87904.0,0.18678229]
[1765911313444,0.19563251,87905.0,87904.0,0.00139229]
[1765911313941,0.22362579,87905.0,87904.0,0.00139229]
[1765911314745,0.22362579,87905.0,87883.0,0.3608]
[1765911314746,0.1973,87884.0,87883.0,0.3608]
[1765911314944,0.1973,87884.0,87883.0,0.39183419]
[1765911315644,0.1973,87884.0,87883.0,0.48134419]
[1765911316040,0.1973,87884.0,87883.0,0.57922419]
[1765911316542,0.1973,87884.0,87883.0,0.58122419]
[1765911317348,0.09885,87884.0,87883.0,0.58122419]
[1765911317543,0.20885074,87892.0,87891.0,0.18539]
[1765911317743,0.95159841,87892.0,87891.0,0.09588]
[1765911317949,0.1973,87886.0,87885.0,0.24446]
[1765911318153,0.1973,87886.0,87885.0,0.27546215]
[1765911319047,0.1973,87886.0,87885.0,0.27746215]
[1765911319438,0.1973,87886.0,87885.0,0.18739]
[1765911319638,0.1973,87886.0,87885.0,0.004]
[1765911320239,0.09885,87886.0,87885.0,0.24846]
[1765911320452,0.1973,87886.0,87885.0,0.24846]
[1765911320955,0.1973,87886.0,87885.0,0.27948209]
[1765911321151,0.1973,87886.0,87885.0,0.24846]
[1765911321453,0.45965,87891.0,87890.0,0.18539]
[1765911321651,1.27186,87891.0,87890.0,0.18539]
[1765911322738,1.27186,87891.0,87890.0,0.003]
[1765911326761,0.2086821,87876.0,87875.0,0.36097064]
[1765911326948,0.9224421,87876.0,87875.0,0.00017064]
[1765911327341,0.9224421,87876.0,87863.0,0.3608]
[1765911327342,0.2481037,87864.0,87863.0,0.3608]
[1765911327548,0.2086843,87859.0,87858.0,0.00227641]
[1765911327754,0.2086843,87859.0,87858.0,0.03322207]
[1765911327948,0.2086843,87859.0,87858.0,0.00227641]
[1765911328457,0.00017064,87867.0,87866.0,0.18539]
[1765911328657,0.71401064,87867.0,87866.0,0.18539]
[1765911328953,0.09902064,87867.0,87866.0,0.18539]
[1765911329255,0.84125314,87867.0,87866.0,0.18539]
[1765911330054,0.93970314,87867.0,87866.0,0.18539]
[1765911330255,0.1973,87859.0,87858.0,0.06134641]
[1765911330455,0.1973,87859.0,87858.0,0.1227081]
[1765911330658,0.1973,87859.0,87858.0,0.0331981]
[1765911331147,0.1973,87859.0,87858.0,0.00227641]
[1765911332055,0.1973,87859.0,87858.0,0.18966641]
[1765911332257,0.1973,87859.0,87858.0,0.09378641]
[1765911332760,0.91146,87859.0,87858.0,0.09378641]
[1765911333350,0.91146,87859.0,87858.0,0.00427641]
[1765911333857,0.91146,87859.0,87858.0,0.17926641]
[1765911334046,0.91146,87859.0,87858.0,0.23256641]
[1765911334246,0.91146,87859.0,87858.0,0.09614641]
[1765911334452,0.91146,87859.0,87858.0,0.00427641]
[1765911335256,0.91146,87859.0,87858.0,0.18631641]
[1765911335755,0.1973,87859.0,87858.0,0.23923641]
[1765911335953,0.91146,87859.0,87858.0,0.00427641]
[1765911336157,1.27226,87859.0,87858.0,0.00427641]
[1765911336357,1.27226,87859.0,87858.0,0.08960641]
[1765911336654,0.5581,87859.0,87858.0,0.23269641]
[1765911336842,0.71416,87859.0,87858.0,0.23269641]
[1765911337047,1.07496,87859.0,87858.0,0.23269641]
[1765911337254,0.71416,87859.0,87858.0,0.23269641]
[1765911337442,0.80775,87859.0,87858.0,0.23269641]
[1765911337653,0.89461,87859.0,87858.0,0.23269641]
[1765911339346,0.80775,87859.0,87858.0,0.23269641]
[1765911339661,0.104974,87862.0,87861.0,0.1755]
[1765911339953,0.12211314,87867.0,87866.0,0.1755]
[1765911340167,0.66407314,87867.0,87866.0,0.1755]
[1765911340457,0.75093314,87867.0,87866.0,0.1755]
[1765911341159,0.75093314,87867.0,87863.0,0.3608]
[1765911341160,0.1918337,87864.0,87863.0,0.5363]
[1765911341755,0.74264314,87867.0,87866.0,0.1755]
[1765911341962,0.02852314,87867.0,87866.0,0.1755]
[1765911342258,0.74260314,87867.0,87866.0,0.1755]
[1765911342462,0.00017064,87867.0,87866.0,0.1755]
[1765911344361,0.0113813,87883.0,87882.0,0.1755]
[1765911344558,0.0926613,87883.0,87882.0,0.5363]
[1765911344759,0.2731113,87883.0,87882.0,0.1755]
[1765911344960,0.191832,87877.0,87876.0,0.22842]
[1765911345165,0.191832,87877.0,87876.0,0.1755]
[1765911345351,0.191832,87877.0,87876.0,0.22842]
[1765911345754,0.1918324,87874.0,87873.0,0.3608]
[1765911345966,0.1049724,87874.0,87873.0,0.5363]
[1765911346266,0.2731113,87883.0,87882.0,0.1755]
[1765911346763,0.2731113,87883.0,87882.0,0.08533]
[1765911346957,0.18045,87877.0,87876.0,0.22842]
[1765911347454,0.18145,87874.0,87873.0,0.3608]
[1765911347654,0.18145,87874.0,87873.0,0.44613]
[1765911348364,0.18145,87874.0,87873.0,0.5363]
[1765911348664,0.18145,87874.0,87873.0,0.3608]
[1765911348967,0.191833,87869.0,87868.0,0.00017064]
[1765911350861,0.02890517,87874.0,87858.0,0.05519641]
[1765911350862,0.1918343,87859.0,87858.0,0.00227641]
[1765911351051,0.9059943,87859.0,87858.0,0.00227641]
[1765911351758,0.18045,87841.0,87840.0,0.22842]
[1765911353268,0.54125,87846.0,87845.0,0.1755]
[1765911353560,0.18045,87841.0,87840.0,0.22842]
[1765911353753,0.18045,87841.0,87835.0,0.3608]
[1765911353754,0.18045,87836.0,87835.0,0.5363]
[1765911353951,0.18045,87836.0,87835.0,0.56711087]
[1765911354357,0.18045,87836.0,87835.0,0.39161087]
[1765911354863,0.18045,87836.0,87835.0,0.47694087]
[1765911355062,0.18145,87836.0,87835.0,0.48594087]
[1765911355757,0.18145,87836.0,87835.0,0.57611087]
[1765911356368,0.18145,87836.0,87835.0,0.48594087]
[1765911356566,0.18145,87836.0,87835.0,0.48194087]
[1765911356757,0.21045581,87836.0,87835.0,0.48394087]
[1765911356958,0.21045581,87836.0,87835.0,0.57411087]
[1765911357270,0.20945581,87836.0,87835.0,0.56911087]
[1765911357561,0.20945581,87836.0,87835.0,0.57211087]
[1765911360171,0.20945581,87836.0,87835.0,0.58349827]
[1765911360466,0.02900581,87836.0,87835.0,0.58349827]
[1765911360673,0.1049766,87842.0,87837.0,0.0113871]
[1765911360860,0.8191366,87842.0,87841.0,0.1755]
[1765911361259,0.9059966,87842.0,87841.0,0.1755]
[1765911361465,0.1918366,87842.0,87841.0,0.1755]
[1765911361858,0.18045,87842.0,87841.0,0.1755]
[1765911362265,0.1918365,87842.0,87841.0,0.1755]
[1765911362569,0.18045,87842.0,87841.0,0.1755]
[1765911362764,0.02833495,87845.0,87844.0,0.1755]
[1765911362969,0.71429075,87849.0,87848.0,0.22842]
[1765911363264,0.1918361,87845.0,87844.0,0.3608]
[1765911363463,0.1918365,87842.0,87841.0,0.1795]
[1765911363869,0.1918365,87842.0,87841.0,0.1775]
[1765911364069,0.1918365,87842.0,87841.0,0.1755]
[1765911364266,0.18045,87842.0,87841.0,0.1755]
[1765911364571,0.18045,87842.0,87841.0,0.1775]
[1765911365666,0.09359,87842.0,87841.0,0.1775]
[1765911365857,0.1049765,87842.0,87841.0,0.1795]
[1765911366053,0.1855865,87842.0,87841.0,0.1795]
[1765911366469,0.90424431,87849.0,87848.0,0.21677]
[1765911367072,0.02900431,87849.0,87848.0,0.21677]
[1765911367769,0.23012431,87849.0,87848.0,0.001]
[1765911367971,0.1725065,87842.0,87841.0,0.002]
[1765911368668,0.1725065,87842.0,87826.0,0.3608]
[1765911368669,0.1725085,87827.0,87826.0,0.3608]
[1765911368860,0.8866685,87827.0,87826.0,0.3608]
[1765911369366,0.16112,87825.0,87824.0,0.00012296]
[1765911369563,0.87532,87825.0,87824.0,0.16683296]
[1765911370366,0.3608,87837.0,87826.0,0.17071]
[1765911370565,0.08051,87827.0,87826.0,0.17071]
[1765911370768,0.16112,87827.0,87826.0,0.17071]
[1765911372261,0.16112,87827.0,87826.0,0.004]
[1765911372466,0.16112,87825.0,87824.0,0.00012296]
[1765911372668,0.16212,87825.0,87824.0,0.00412296]
[1765911373170,0.8764,87825.0,87824.0,0.00412296]
[1765911373469,0.8754,87825.0,87824.0,0.00012296]
[1765911373860,0.16112,87825.0,87824.0,0.00012296]
[1765911374169,0.87544,87825.0,87824.0,0.00012296]
[1765911374861,0.87544,87825.0,87824.0,0.08179296]
[1765911375062,0.16112,87825.0,87824.0,0.16783296]
[1765911375380,0.87548,87825.0,87824.0,0.16783296]
[1765911376073,0.87548,87825.0,87824.0,0.00112296]
[1765911376267,0.8868687,87825.0,87824.0,0.00112296]
[1765911376673,0.87548,87825.0,87824.0,0.08279296]
[1765911376874,0.87548,87825.0,87824.0,0.16783296]
[1765911377379,0.10882985,87837.0,87836.0,0.16671]
[1765911377578,0.87548,87837.0,87836.0,0.16671]
[1765911377880,0.16112,87832.0,87831.0,0.21677]
[1765911378379,0.16112,87825.0,87824.0,0.52763296]
[1765911378679,0.87552,87825.0,87824.0,0.52763296]
[1765911379064,0.8869087,87825.0,87824.0,0.52763296]
[1765911379271,0.87552,87825.0,87824.0,0.52763296]
[1765911380868,0.87552,87825.0,87824.0,0.53902186]
[1765911381069,0.87552,87825.0,87824.0,0.52863296]
[1765911383180,0.79491,87825.0,87824.0,0.52863296]
[1765911383380,0.87552,87825.0,87824.0,0.52863296]
[1765911383884,0.87552,87825.0,87824.0,0.36192296]
[1765911384288,0.1725074,87836.0,87835.0,0.16671]
[1765911384474,0.8868674,87836.0,87835.0,0.16671]
[1765911384676,0.87548,87836.0,87835.0,0.16671]
[1765911385381,0.16112,87833.0,87832.0,0.05006]
[1765911385579,0.16112,87833.0,87828.0,0.0113883]
[1765911385580,0.16112,87829.0,87828.0,0.1780983]
[1765911385781,0.16112,87829.0,87828.0,0.16671]
[1765911389972,0.1725087,87825.0,87824.0,0.16683296]
[1765911390180,0.1725087,87825.0,87824.0,0.03088957]
[1765911390389,0.1725087,87825.0,87824.0,0.00012296]
[1765911390685,0.16112,87825.0,87824.0,0.19758247]
[1765911391085,0.16112,87825.0,87824.0,0.03087247]
[1765911391289,0.16112,87825.0,87824.0,0.00112296]
[1765911392384,0.0282,87832.0,87824.0,0.00112296]
[1765911392385,0.44131,87847.0,87846.0,0.16671]
[1765911392698,0.22830456,87860.0,87848.0,0.21677]
[1765911392699,0.08068075,87849.0,87848.0,0.21677]
[1765911392885,0.16129075,87849.0,87848.0,0.21677]
[1765911393085,0.18946409,87849.0,87848.0,0.21677]
[1765911394381,0.19046409,87849.0,87848.0,0.21677]
[1765911394789,0.19146409,87849.0,87848.0,0.21677]